fUSD/lending_fUSD_20241017
["ID","MTS","AMOUNT","RATE_DAILY","PERIOD"]
[340388273,1729157443929,-500.0,0.00014,2]
[340388275,1729157443939,-500.0,0.00014,2]
[340388276,1729157443948,-500.0,0.00014,2]
[340388277,1729157443957,-500.0,0.00014,2]
[340388278,1729157443967,-348.1,0.00014,2]
[340388279,1729157443981,-500.0,0.00014,2]
[340388280,1729157443991,-500.0,0.00014,2]
[340388281,1729157444001,-500.0,0.00014,2]
[340388282,1729157444010,-500.0,0.00014,2]
[340388283,1729157444020,-500.0,0.00014,2]
[340388284,1729157444029,-500.0,0.00014,2]
[340388286,1729157444039,-500.0,0.00014,2]
[340388287,1729157444049,-500.0,0.00014,2]
[340388288,1729157444058,-500.0,0.00014,2]
[340388289,1729157444067,-506.09,0.00014,2]
[340388290,1729157444077,-500.0,0.00014,2]
[340388291,1729157444087,-500.0,0.00014,2]
[340388292,1729157444097,-468.24,0.00014,2]
[340388293,1729157444107,-500.0,0.00014,2]
[340388294,1729157444116,-500.0,0.00014,2]
[340388295,1729157444126,-500.0,0.00014,2]
[340388296,1729157444135,-500.0,0.00014,2]
[340388297,1729157444145,-500.0,0.00014,2]
[340388298,1729157444155,-500.0,0.00014,2]
[340388299,1729157444165,-500.0,0.00014,2]
[340388300,1729157444175,-500.0,0.00014,2]
[340388301,1729157444185,-500.0,0.00014,2]
[340388302,1729157444195,-302.59,0.00014,2]
[340388303,1729157444206,-500.0,0.00014,2]
[340388304,1729157444215,-500.0,0.00014,2]
[340388305,1729157444226,-500.0,0.00014,2]
[340388306,1729157444236,-500.0,0.00014,2]
[340388307,1729157444246,-500.0,0.00014,2]
[340388308,1729157444256,-500.0,0.00014,2]
[340388309,1729157444266,-500.0,0.00014,2]
[340388310,1729157444276,-500.0,0.00014,2]
[340388311,1729157444285,-500.0,0.00014,2]
[340388312,1729157444295,-500.0,0.00014,2]
[340388313,1729157444305,-366.79,0.00014,2]
[340388314,1729157444314,-500.0,0.00014,2]
[340388315,1729157444324,-193.744404,0.00014,2]
[340388316,1729157444333,-193.744404,0.00014,2]
[340388317,1729157444344,-650.0,0.00014,2]
[340388318,1729157444354,-151.0,0.00014,2]
[340388319,1729157444364,-175.304121,0.00014,2]
[340388320,1729157444374,-151.0,0.00014,2]
[340388321,1729157444384,-151.0,0.00014,2]
[340388322,1729157444394,-151.0,0.00014,2]
[340388323,1729157444403,-6485.08443822,0.00014,2]
[340388324,1729157444413,-187.22769271,0.00014,2]
[340388325,1729157444423,-875.85475855,0.00014002,2]
[340388326,1729157444432,-200.0,0.00014005,2]
[340388327,1729157444442,-1586.35771796,0.00014066,2]
[340388328,1729157444452,-1586.35771796,0.00014075,2]
[340388329,1729157444462,-2351.9653666,0.00014076,2]
[340388330,1729157444473,-2599.4458706,0.00014076,2]
[340388331,1729157444483,-4062.0749336,0.00014076,2]
[340388332,1729157444496,-32988.4131917,0.00014076,2]
[340388333,1729157444506,-994.3121182,0.00014076,2]
[340388334,1729157444516,-152.16806017,0.00014085,7]
[340388335,1729157444526,-1442898.22664653,0.00014086,2]
[340388336,1729157444535,-1380.32,0.000141,2]
[340388337,1729157444546,-1084.0,0.00014217,2]
[340388338,1729157444555,-150.0,0.00014217,2]
[340388339,1729157444568,-449.0,0.00014217,2]
[340388340,1729157444578,-5884.0,0.00014217,2]
[340388341,1729157444587,-812.0,0.00014217,2]
[340388342,1729157444597,-1245.0,0.00014217,2]
[340388343,1729157444606,-560.0,0.00014217,2]
[340388344,1729157444616,-165.46,0.00014273,2]
[340388345,1729157444626,-156.75,0.0001428,2]
[340388346,1729157444636,-159.82,0.00014289,2]
[340388347,1729157444646,-193.744404,0.00014305,2]
[340388348,1729157444656,-193.74440333,0.00014305,2]
[340388349,1729157444665,-151.0,0.00014315,2]
[340388350,1729157444675,-167.0,0.00014325,2]
[340388351,1729157444685,-258.72,0.00014336,2]
[340388352,1729157444695,-150.0,0.00014337,2]
[340388353,1729157444705,-164.0,0.00014337,2]
[340388354,1729157444714,-165.3,0.00014337,2]
[340388355,1729157444725,-285.663,0.00014337,2]
[340388356,1729157444735,-150.0,0.00014337,2]
[340388357,1729157444744,-150.596,0.00014337,2]
[340388358,1729157444753,-152.145,0.00014337,2]
[340388359,1729157444763,-156.867,0.00014337,2]
[340388360,1729157444772,-200.0,0.00014337,2]
[340388361,1729157444782,-150.31,0.00014337,2]
[340388362,1729157444791,-516.46,0.00014614,2]
[340388363,1729157444800,-1133.52315672,0.000147,2]
[340388364,1729157444809,-500.0,0.00014721,2]
[340388365,1729157444819,-4822.75904916,0.00014735,2]
[340388366,1729157444830,-393979.82021633,0.00014869,2]
[340388367,1729157444840,-231.0,0.00014869,2]
[340388368,1729157444849,-210.0,0.00014869,2]
[340388369,1729157444858,-208.0,0.00014869,2]
[340388370,1729157444867,-208.0,0.00014869,2]
[340388371,1729157444876,-208.0,0.00014869,2]
[340388372,1729157444886,-208.0,0.00014869,2]
[340388373,1729157444896,-208.0,0.00014869,2]
[340388374,1729157444905,-208.0,0.00014869,2]
[340388375,1729157444915,-600.0,0.00014869,2]
[340388376,1729157444924,-600.0,0.00014869,2]
[340388377,1729157444934,-600.0,0.00014869,2]
[340388378,1729157444943,-600.0,0.00014869,2]
[340388379,1729157444953,-600.0,0.00014869,2]
[340388380,1729157444963,-600.0,0.00014869,2]
[340388381,1729157444973,-600.0,0.00014869,2]
[340388382,1729157444983,-600.0,0.00014869,2]
[340388383,1729157444992,-600.0,0.00014869,2]
[340388384,1729157445003,-600.0,0.00014869,2]
[340388385,1729157445012,-600.0,0.00014869,2]
[340388386,1729157445022,-600.0,0.00014869,2]
[340388387,1729157445032,-600.0,0.00014869,2]
[340388388,1729157445042,-600.0,0.00014869,2]
[340388389,1729157445052,-600.0,0.00014869,2]
[340388390,1729157445062,-600.0,0.00014869,2]
[340388391,1729157445072,-600.0,0.00014869,2]
[340388392,1729157445082,-600.0,0.00014869,2]
[340388393,1729157445092,-600.0,0.00014869,2]
[340388394,1729157445102,-600.0,0.00014869,2]
[340388395,1729157445111,-208.0,0.00014869,2]
[340388396,1729157445121,-167.0,0.00014871,2]
[340388397,1729157445131,-400.0,0.0001497,2]
[340388398,1729157445140,-700.0,0.0001497,2]
[340388399,1729157445151,-700.0,0.0001497,2]
[340388400,1729157445161,-768.84459147,0.0001497,2]
[340388401,1729157445170,-1300.0,0.00014972,2]
[340388402,1729157445179,-416.0,0.00015,2]
[340388403,1729157445191,-1939.31735457,0.00015,2]
[340388404,1729157445201,-201.10631153,0.00015,2]
[340388405,1729157445211,-5389.0,0.00015,2]
[340388406,1729157445222,-494.2374514,0.00015,2]
[340388407,1729157445233,-1000.0,0.00015,2]
[340388408,1729157445242,-1000.0,0.00015,3]
[340388409,1729157445252,-1000.0,0.00015,3]
[340388410,1729157445262,-1000.0,0.00015,3]
[340388411,1729157445271,-416.0,0.00015,2]
[340388412,1729157445280,-1391.0,0.00015,2]
[340388413,1729157445290,-5366.0,0.00015,2]
[340388414,1729157445299,-800.0,0.00015005,2]
[340388415,1729157445308,-300.0,0.00015068,2]
[340388416,1729157445318,-10017.06336716,0.0001513,2]
[340388417,1729157445328,-1000.0,0.00015142,2]
[340388418,1729157445337,-504.18215103,0.00015142,2]
[340388419,1729157445346,-167.0,0.00015194,2]
[340388420,1729157445355,-1215.15569857,0.00015235,2]
[340388421,1729157445365,-1000.0,0.00015242,2]
[340388422,1729157445374,-1000.0,0.00015242,2]
[340388423,1729157445383,-565.58502372,0.000153,2]
[340388424,1729157445393,-1000.0,0.00015342,2]
[340388425,1729157445402,-167.0,0.00015417,2]
[340388426,1729157445411,-648.6580915,0.00015543,2]
[340388427,1729157445419,-200.0,0.00015561,2]
[340388428,1729157445428,-186.6235139,0.0001565,2]
[340388429,1729157445437,-159.82,0.00015877,2]
[340388430,1729157445446,-1380.32,0.000159,2]
[340388431,1729157445456,-258.72,0.00015929,2]
[340388432,1729157445465,-150.0,0.00015973,2]
[340388433,1729157445476,-4822.75904916,0.00015997,2]
[340388434,1729157445486,-1090.0,0.00016,2]
[340388435,1729157445498,-1000.0,0.00016,2]
[340388436,1729157445507,-221.0,0.00016,3]
[340388437,1729157445516,-700.0,0.00016,2]
[340388438,1729157445527,-1000.0,0.00016068,2]
[340388439,1729157445535,-500.0,0.00016068,2]
[340388440,1729157445545,-9999.99,0.00016116,2]
[340388441,1729157445555,-156.75,0.0001632,2]
[340388442,1729157445563,-1300.0,0.00016342,2]
[340388443,1729157445575,-424.27,0.00016384,2]
[340388444,1729157445585,-424.27,0.00016384,2]
[340388445,1729157445595,-151.00803555,0.00016438,2]
[340388446,1729157445604,-2500.0,0.00016438,2]
[340388447,1729157445614,-2500.0,0.00016438,2]
[340388448,1729157445623,-2500.0,0.00016438,2]
[340388449,1729157445633,-2500.0,0.00016438,2]
[340388450,1729157445642,-2500.0,0.00016438,2]
[340388451,1729157445651,-2500.0,0.00016438,2]
[340388452,1729157445661,-2500.0,0.00016438,2]
[340388453,1729157445670,-2500.0,0.00016438,2]
[340388454,1729157445679,-2500.0,0.00016438,2]
[340388455,1729157445689,-2500.0,0.00016438,2]
[340388456,1729157445698,-2500.0,0.00016438,2]
[340388457,1729157445707,-2500.0,0.00016438,2]
[340388458,1729157445716,-2500.0,0.00016438,2]
[340388459,1729157445726,-2500.0,0.00016438,2]
[340388460,1729157445735,-294.67,0.00016438,2]
[340388461,1729157445744,-403.637293,0.00016438,2]
[340388462,1729157445754,-403.637293,0.00016438,2]
[340388463,1729157445763,-403.637293,0.00016438,2]
[340388464,1729157445772,-403.637293,0.00016438,2]
[340388465,1729157445781,-403.637293,0.00016438,2]
[340388466,1729157445790,-403.637293,0.00016438,2]
[340388467,1729157445799,-403.637293,0.00016438,2]
[340388468,1729157445808,-403.637293,0.00016438,2]
[340388469,1729157445817,-403.637293,0.00016438,2]
[340388470,1729157445826,-403.637293,0.00016438,2]
[340388471,1729157445835,-403.637293,0.00016438,2]
[340388472,1729157445844,-403.637293,0.00016438,2]
[340388473,1729157445854,-403.637293,0.00016438,2]
[340388474,1729157445863,-403.637293,0.00016438,2]
[340388475,1729157445872,-403.637293,0.00016438,2]
[340388476,1729157445881,-403.637293,0.00016438,2]
[340388477,1729157445891,-403.637293,0.00016438,2]
[340388478,1729157445900,-403.637293,0.00016438,2]
[340388479,1729157445909,-403.637293,0.00016438,2]
[340388480,1729157445918,-403.637288,0.00016438,2]
[340388481,1729157445927,-150.0,0.00016438,2]
[340388482,1729157445936,-300.0,0.00016438,2]
[340388483,1729157445945,-800.0,0.00016506,2]
[340388484,1729157445955,-158.05,0.00016712,2]
[340388485,1729157445964,-389.76,0.00016803,2]
[340388486,1729157445974,-150.0,0.00016871,2]
[340388487,1729157445984,-516.46,0.00016878,2]
[340388488,1729157445994,-4943.35,0.00016922,2]
[340388489,1729157446003,-6328.3,0.00016922,2]
[340388490,1729157446013,-227.0,0.00017,2]
[340388491,1729157446022,-302.2,0.00017,2]
[340388492,1729157446031,-360.0,0.00017,2]
[340388494,1729157446041,-200.0,0.00017117,2]
[340388496,1729157446050,-348.9821876,0.00017146,2]
[340388497,1729157446059,-502.34205969,0.00017164,2]
[340388499,1729157446068,-449.67,0.00017217,2]
[340388501,1729157446077,-150.0,0.00017217,2]
[340388502,1729157446086,-449.0,0.00017217,2]
[340388503,1729157446095,-1245.0,0.00017217,2]
[340388505,1729157446104,-500.0,0.00017246,2]
[340388507,1729157446114,-756.10590419,0.00017246,2]
[340388508,1729157446124,-4822.75904916,0.00017259,2]
[340388509,1729157446133,-166.7124262,0.00017271,2]
[340388510,1729157446142,-150.0,0.00017304,2]
[340388511,1729157446151,-150.0,0.00017337,2]
[340388513,1729157446161,-150.0,0.00017337,2]
[340388515,1729157446170,-150.0,0.00017337,2]
[340388516,1729157446179,-150.0,0.00017337,2]
[340388517,1729157446188,-756.07,0.00017342,2]
[340388518,1729157446198,-869.65862657,0.00017346,2]
[340388519,1729157446208,-1000.0,0.00017438,2]
[340388520,1729157446218,-159.82,0.00017465,2]
[340388521,1729157446228,-186.6235139,0.000175,2]
[340388522,1729157446238,-258.72,0.00017522,2]
[340388523,1729157446247,-535.32,0.00017534,2]
[340388524,1729157446256,-535.32,0.00017534,2]
[340388525,1729157446266,-849.23,0.00017594,2]
[340388526,1729157446275,-424.27,0.00017594,2]
[340388527,1729157446284,-424.27,0.00017594,2]
[340388528,1729157446294,-1380.32,0.000176,2]
[340388529,1729157446304,-1300.0,0.00017712,2]
[340388530,1729157446313,-152.0,0.00017733,3]
[340388531,1729157446322,-150.0,0.00017736,2]
[340388532,1729157446331,-756.07,0.00017836,2]
[340388533,1729157446341,-152.0,0.00017969,4]
[340388534,1729157446350,-5579.2930075,0.00018,2]
[340388535,1729157446360,-899.9999986,0.00018,19]
[340388536,1729157446369,-750.0,0.00018,2]
[340388537,1729157446379,-327.12994631,0.00018,2]
[340388538,1729157446388,-800.0,0.00018006,2]
[340388539,1729157446398,-150.0,0.00018069,2]
[340388540,1729157446407,-150.0,0.00018169,2]
[340388541,1729157446416,-150.0,0.0001818,2]
[340388542,1729157446426,-152.0,0.00018206,5]
[340388543,1729157446437,-756.07,0.00018219,2]
[340388544,1729157446447,-756.07,0.00018219,2]
[340388545,1729157446460,-756.07,0.00018219,2]
[340388546,1729157446471,-756.07,0.00018219,2]
[340388547,1729157446481,-756.07,0.00018219,2]
[340388548,1729157446494,-756.07,0.00018219,2]
[340388549,1729157446504,-756.07,0.00018219,2]
[340388550,1729157446513,-756.07,0.00018219,2]
[340388551,1729157446523,-756.07,0.00018219,2]
[340388552,1729157446534,-756.07,0.00018219,2]
[340388553,1729157446543,-756.07,0.00018219,2]
[340388554,1729157446553,-756.07,0.00018219,2]
[340388555,1729157446563,-756.07,0.00018219,2]
[340388556,1729157446574,-756.07,0.00018219,2]
[340388557,1729157446583,-756.07,0.00018219,2]
[340388558,1729157446593,-756.07,0.00018219,2]
[340388559,1729157446602,-756.07,0.00018219,2]
[340388560,1729157446611,-756.07,0.00018219,2]
[340388561,1729157446620,-756.07,0.00018219,2]
[340388562,1729157446629,-756.07,0.00018219,2]
[340388563,1729157446638,-756.07,0.00018219,2]
[340388564,1729157446647,-756.07,0.00018219,2]
[340388565,1729157446656,-756.07,0.00018219,2]
[340388566,1729157446666,-756.07,0.00018219,2]
[340388567,1729157446675,-756.07,0.00018219,2]
[340388568,1729157446684,-756.07,0.00018219,2]
[340388569,1729157446693,-756.07,0.00018219,2]
[340388570,1729157446702,-756.07,0.00018219,2]
[340388571,1729157446711,-756.07,0.00018219,2]
[340388572,1729157446720,-5002.24064442,0.00018315,2]
[340388573,1729157446729,-5000.0,0.00018315,2]
[340388574,1729157446738,-5000.0,0.00018315,2]
[340388575,1729157446747,-150.0,0.00018325,2]
[340388576,1729157446756,-535.32,0.00018356,2]
[340388577,1729157446766,-535.32,0.00018356,2]
[340388578,1729157446775,-535.32,0.00018356,2]
[340388579,1729157446784,-535.32,0.00018356,2]
[340388580,1729157446794,-535.32,0.00018356,2]
[340388581,1729157446803,-535.32,0.00018356,2]
[340388582,1729157446812,-535.32,0.00018356,2]
[340388583,1729157446822,-535.32,0.00018356,2]
[340388584,1729157446831,-535.32,0.00018356,2]
[340388585,1729157446841,-535.32,0.00018356,2]
[340388586,1729157446850,-535.32,0.00018356,2]
[340388587,1729157446859,-535.32,0.00018356,2]
[340388588,1729157447047,-535.32,0.00018356,2]
[340388589,1729157447057,-535.32,0.00018356,2]
[340388590,1729157447066,-535.32,0.00018356,2]
[340388591,1729157447075,-156.75,0.0001836,2]
[340388592,1729157447084,-156.52,0.00018372,2]
[340388593,1729157447093,-152.0,0.00018443,6]
[340388594,1729157447103,-150.0,0.00018452,2]
[340388595,1729157447112,-152.44,0.00018452,2]
[340388596,1729157447121,-150.0,0.00018452,2]
[340388597,1729157447130,-150.0,0.00018452,2]
[340388598,1729157447140,-4822.75904916,0.00018521,2]
[340388599,1729157447149,-1000.0,0.00018534,2]
[340388600,1729157447158,-2500.0,0.00018552,2]
[340388601,1729157447168,-424.27,0.00018553,2]
[340388602,1729157447177,-1000.0,0.000186,2]
[340388603,1729157447186,-150.0,0.00018601,2]
[340388604,1729157447197,-150.0,0.00018631,2]
[340388605,1729157447206,-200.0,0.00018673,2]
[340388606,1729157447215,-152.0,0.0001868,7]
[340388607,1729157447225,-150.0,0.00018682,2]
[340388608,1729157447234,-1300.0,0.00018808,2]
[340388609,1729157447243,-500.0,0.00018808,2]
[340388610,1729157447253,-152.0,0.00018917,8]
[340388611,1729157447262,-1800.0,0.00019,20]
[340388612,1729157447272,-150.0,0.00019,2]
[340388613,1729157447282,-150.0,0.00019004,2]
[340388614,1729157447291,-150.0,0.00019034,2]
[340388615,1729157447300,-159.82,0.00019053,2]
[340388616,1729157447310,-1380.32,0.000191,2]
[340388617,1729157447320,-150.0,0.00019112,2]
[340388618,1729157447329,-258.72,0.00019115,2]
[340388619,1729157447339,-516.46,0.00019142,2]
[340388620,1729157447348,-11779.19,0.00019151,2]
[340388621,1729157447357,-152.0,0.00019153,9]
[340388622,1729157447367,-151.0,0.00019178,2]
[340388623,1729157447376,-151.0,0.00019178,2]
[340388624,1729157447385,-151.0,0.00019178,2]
[340388625,1729157447394,-151.0,0.00019178,2]
[340388626,1729157447403,-151.0,0.00019178,2]
[340388627,1729157447412,-151.0,0.00019178,2]
[340388628,1729157447421,-151.0,0.00019178,2]
[340388629,1729157447431,-151.0,0.00019178,2]
[340388630,1729157447440,-151.0,0.00019178,2]
[340388631,1729157447449,-151.0,0.00019178,2]
[340388632,1729157447458,-151.0,0.00019178,2]
[340388633,1729157447467,-151.0,0.00019178,2]
[340388634,1729157447476,-151.0,0.00019178,2]
[340388635,1729157447485,-151.0,0.00019178,2]
[340388636,1729157447499,-151.0,0.00019178,2]
[340388637,1729157447508,-151.0,0.00019178,2]
[340388638,1729157447518,-151.0,0.00019178,2]
[340388639,1729157447527,-301.92127,0.00019178,2]
[340388640,1729157447537,-150.0,0.00019193,2]
[340388641,1729157447547,-150.0,0.00019257,2]
[340388642,1729157447556,-300.08,0.00019274,2]
[340388643,1729157447566,-186.6235139,0.0001935,2]
[340388644,1729157447576,-152.0,0.0001939,10]
[340388645,1729157447586,-150.0,0.00019399,2]
[340388646,1729157447595,-6485.0844382,0.00019416,2]
[340388647,1729157447605,-150.0,0.00019436,2]
[340388648,1729157447614,-150.0,0.00019445,2]
[340388649,1729157447623,-160.21210206,0.0001945,2]
[340388650,1729157447632,-150.0,0.00019466,2]
[340388651,1729157447642,-913.02,0.00019512,2]
[340388652,1729157447651,-756.07,0.00019512,2]
[340388653,1729157447660,-756.07,0.00019512,2]
[340388654,1729157447670,-759.0,0.000196,2]
[340388655,1729157447679,-152.0,0.00019627,11]
[340388656,1729157447689,-1000.0,0.0001963,2]
[340388657,1729157447698,-150.0,0.00019639,2]
[340388658,1729157447708,-150.0,0.00019657,2]
[340388659,1729157447717,-150.0,0.00019683,2]
[340388660,1729157447731,-150.0,0.00019724,2]
[340388661,1729157447740,-150.0,0.00019737,2]
[340388662,1729157447750,-4822.75904916,0.00019783,2]
[340388663,1729157447760,-150.0,0.00019799,2]
[340388664,1729157447769,-152.0,0.00019864,12]
[340388665,1729157447779,-150.0,0.00019887,2]
[340388666,1729157447788,-150.0,0.00019899,2]
[340388667,1729157447797,-4642.6759507,0.000199,3]
[340388668,1729157447806,-2300.0,0.000199,7]
[340388669,1729157447816,-11607.67831783,0.000199,2]
[340388670,1729157447825,-11607.6783178,0.000199,2]
[340388671,1729157447834,-11607.6783178,0.000199,2]
[340388672,1729157447843,-150.0,0.00019944,2]
[340388673,1729157447853,-150.0,0.00019955,2]
[340388674,1729157447862,-400.0,0.0001997,2]
[340388675,1729157447872,-700.0,0.0001997,2]
[340388676,1729157447881,-2351.9653666,0.00019986,2]
[340388677,1729157447890,-3752.9070164,0.00019986,2]
[340388678,1729157447899,-2500.0,0.00019999,2]
[340388679,1729157447909,-7964.23073294,0.0002,2]
[340388680,1729157447918,-1014.0,0.0002,3]
[340388681,1729157447928,-20060.23479002,0.0002,5]
[340388682,1729157447937,-6653.0,0.0002,2]
[340388683,1729157447947,-833.0,0.0002,2]
[340388684,1729157447956,-150.0,0.0002,2]
[340388685,1729157447965,-833.0,0.0002,2]
[340388686,1729157447977,-2127.18222058,0.0002,2]
[340388687,1729157447987,-1800.0,0.0002,21]
[340388688,1729157447997,-2570.0,0.0002,7]
[340388689,1729157448006,-500.0,0.0002,7]
[340388690,1729157448016,-500.0,0.0002,7]
[340388691,1729157448025,-2508.0,0.0002,2]
[340388692,1729157448035,-55000.0,0.0002,2]
[340388693,1729157448044,-200655.80149563,0.0002,2]
[340388694,1729157448053,-150.0,0.0002,7]
[340388695,1729157448062,-800.0,0.0002,2]
[340388696,1729157448072,-500.0,0.0002,7]
[340388697,1729157448081,-500.0,0.0002,7]
[340388698,1729157448090,-500.0,0.0002,7]
[340388699,1729157448100,-500.0,0.0002,7]
[340388700,1729157448109,-500.0,0.0002,7]
[340388701,1729157448120,-500.0,0.0002,7]
[340388702,1729157448130,-500.0,0.0002,7]
[340388703,1729157448140,-500.0,0.0002,7]
[340388704,1729157448150,-500.0,0.0002,7]
[340388705,1729157448160,-500.0,0.0002,7]
[340388706,1729157448170,-500.0,0.0002,7]
[340388707,1729157448180,-500.0,0.0002,7]
[340388708,1729157448191,-500.0,0.0002,7]
[340388709,1729157448202,-513.041947,0.0002,2]
[340388710,1729157448212,-500.0,0.0002,7]
[340388711,1729157448223,-2211.129366,0.0002,2]
[340388712,1729157448233,-292.524785,0.0002,2]
[340388713,1729157448244,-500.0,0.0002,7]
[340388714,1729157448254,-500.0,0.0002,7]
[340388715,1729157448263,-500.0,0.0002,7]
[340388716,1729157448273,-584.94206527,0.0002,2]
[340388717,1729157448283,-1000.0,0.0002,2]
[340388718,1729157448293,-341.86,0.0002,2]
[340388719,1729157448303,-341.86,0.0002,2]
[340388720,1729157448312,-341.86,0.0002,2]
[340388721,1729157448322,-341.86,0.0002,2]
[340388722,1729157448332,-341.86,0.0002,2]
[340388723,1729157448341,-341.86,0.0002,2]
[340388724,1729157448351,-341.86,0.0002,2]
[340388725,1729157448360,-341.86,0.0002,2]
[340388726,1729157448370,-341.86,0.0002,2]
[340388727,1729157448379,-341.86,0.0002,2]
[340388728,1729157448389,-341.86,0.0002,2]
[340388729,1729157448398,-341.86,0.0002,2]
[340388730,1729157448408,-341.86,0.0002,2]
[340388731,1729157448418,-341.86,0.0002,2]
[340388732,1729157448427,-341.86,0.0002,2]
[340388733,1729157448437,-341.86,0.0002,2]
[340388734,1729157448446,-341.86,0.0002,2]
[340388735,1729157448456,-341.86,0.0002,2]
[340388736,1729157448465,-341.86,0.0002,2]
[340388737,1729157448476,-341.86,0.0002,2]
[340388738,1729157448485,-341.86,0.0002,2]
[340388739,1729157448498,-341.86,0.0002,2]
[340388740,1729157448507,-341.86,0.0002,2]
[340388741,1729157448517,-341.86,0.0002,2]
[340388742,1729157448527,-341.86,0.0002,2]
[340388743,1729157448536,-341.86,0.0002,2]
[340388744,1729157448546,-341.86,0.0002,2]
[340388745,1729157448555,-341.86,0.0002,2]
[340388746,1729157448565,-341.86,0.0002,2]
[340388747,1729157448575,-341.86,0.0002,2]
[340388748,1729157448585,-341.86,0.0002,2]
[340388749,1729157448595,-341.86,0.0002,2]
[340388750,1729157448604,-341.86,0.0002,2]
[340388751,1729157448614,-341.86,0.0002,2]
[340388752,1729157448623,-341.86,0.0002,2]
[340388753,1729157448632,-341.86,0.0002,2]
[340388754,1729157448641,-341.86,0.0002,2]
[340388755,1729157448650,-341.86,0.0002,2]
[340388756,1729157448659,-341.86,0.0002,2]
[340388757,1729157448668,-341.86,0.0002,2]
[340388758,1729157448678,-341.86,0.0002,2]
[340388759,1729157448687,-341.86,0.0002,2]
[340388760,1729157448696,-341.86,0.0002,2]
[340388761,1729157448705,-341.86,0.0002,2]
[340388762,1729157448715,-341.86,0.0002,2]
[340388763,1729157448726,-341.86,0.0002,2]
[340388764,1729157448739,-341.86,0.0002,2]
[340388765,1729157448749,-341.86,0.0002,2]
[340388766,1729157448758,-341.86,0.0002,2]
[340388767,1729157448767,-341.86,0.0002,2]
[340388768,1729157448777,-424.28,0.0002,2]
[340388769,1729157448785,-424.28,0.0002,2]
[340388770,1729157448795,-424.28,0.0002,2]
[340388771,1729157448804,-150.0,0.00020093,2]
[340388772,1729157448813,-152.0,0.00020101,13]
[340388773,1729157448823,-150.0,0.00020124,2]
[340388774,1729157448832,-150.0,0.00020246,2]
[340388775,1729157448841,-294.67,0.00020274,2]
[340388776,1729157448851,-150.0,0.00020304,2]
[340388777,1729157448861,-150.0,0.00020327,2]
[340388778,1729157448870,-150.0,0.00020332,2]
[340388779,1729157448879,-150.0,0.00020337,2]
[340388780,1729157448888,-152.0,0.00020337,14]
[340388781,1729157448901,-150.0,0.00020394,2]
[340388782,1729157448910,-150.0,0.000205,8]